bitfinex-derivatives/quotes_BNBF0:USTF0_20250529
["timestamp","ask_amount","ask_price","bid_price","bid_amount"]
[1748479439187,0.29006526,689.5,689.18,1.6418744]
[1748479439489,0.29006526,689.5,689.19,1.64194519]
[1748479439781,0.29006526,689.5,689.2,1.64210791]
[1748479440082,0.29006526,689.5,689.21,1.07063812]
[1748479440280,0.29006526,689.5,689.22,1.07063769]
[1748479440483,0.29006526,689.5,689.09,1.06914261]
[1748479440883,0.29006526,689.5,689.1,0.57147025]
[1748479441083,0.29006526,689.5,689.11,1.07063701]
[1748479441289,0.29006526,689.5,689.12,1.07063635]
[1748479441492,0.29006526,689.5,689.13,1.64215107]
[1748479441686,0.29006526,689.5,689.14,1.64215107]
[1748479441889,0.29006526,689.5,689.15,1.64215107]
[1748479442093,0.29006526,689.5,689.16,1.64215107]
[1748479442290,0.29006526,689.5,689.17,1.64235896]
[1748479442487,0.29006526,689.5,689.18,1.64235984]
[1748479442699,0.29006526,689.5,689.19,1.64240129]
[1748479442895,0.29006526,689.5,689.2,1.64240129]
[1748479443101,0.29006526,689.5,689.21,1.64240129]
[1748479443298,0.29006526,689.5,689.22,1.64240129]
[1748479443596,0.29006526,689.5,689.23,1.07080889]
[1748479443795,0.29006526,689.5,689.24,1.07080889]
[1748479443993,0.29006526,689.5,689.25,1.07136664]
[1748479444196,0.29006526,689.5,689.26,1.07136503]
[1748479444394,0.29006526,689.5,689.09,1.06914261]
[1748479444395,0.29006526,689.5,689.27,1.07136503]
[1748479444592,0.29006526,689.5,689.28,1.07147647]
[1748479444795,0.29006526,689.5,689.29,1.0715168]
[1748479445090,0.29006526,689.5,689.3,1.0715168]
[1748479445395,0.29006526,689.5,689.31,1.07164943]
[1748479445608,0.29006526,689.5,689.32,1.07164943]
[1748479445795,0.29006526,689.5,689.09,1.06914261]
[1748479446001,0.29006526,689.5,689.1,1.64280433]
[1748479446289,0.29006526,689.5,689.09,1.06914261]
[1748479446496,0.29006526,689.5,689.1,1.64280144]
[1748479446694,0.29006526,689.5,689.11,1.64280144]
[1748479446892,0.29006526,689.5,689.12,1.64280144]
[1748479447101,0.29006526,689.5,689.13,1.64280144]
[1748479447296,0.29006526,689.5,689.14,1.64280144]
[1748479447499,0.29006526,689.5,689.15,1.6431257]
[1748479447701,0.29006526,689.5,689.16,1.6431257]
[1748479447901,0.29006526,689.5,689.17,1.64222559]
[1748479448102,0.29006526,689.5,689.18,1.64222559]
[1748479448396,0.29006526,689.5,689.19,1.64222559]
[1748479448596,0.29006526,689.5,689.2,1.64222559]
[1748479448796,0.29006526,689.5,689.21,1.64222559]
[1748479448999,0.29006526,689.5,689.09,1.06914261]
[1748479449000,0.29006526,689.5,689.22,1.64118378]
[1748479449199,0.29006526,689.5,689.23,1.64118378]
[1748479449401,0.29006526,689.5,689.24,1.64118378]
[1748479449703,0.29006526,689.5,689.25,1.64127314]
[1748479449895,0.29006526,689.5,689.09,1.06914261]
[1748479449896,0.29006526,689.5,689.26,1.07001308]
[1748479450097,0.29006526,689.5,689.27,1.07001308]
[1748479450396,0.29006526,689.5,689.28,1.07001519]
[1748479450597,0.29006526,689.5,689.29,1.07001519]
[1748479450802,0.29006526,689.5,689.3,1.07001519]
[1748479451040,0.29006526,689.5,689.31,1.07001519]
[1748479451197,0.29006526,689.5,689.32,1.07001519]
[1748479451400,0.29006526,689.5,689.33,1.07004349]
[1748479451604,0.29006526,689.5,689.34,1.07002476]
[1748479451804,0.29006526,689.5,689.35,1.07002476]
[1748479452001,0.29006526,689.5,689.36,1.07002476]
[1748479452202,0.29006526,689.5,689.37,1.07003806]
[1748479452402,0.29006526,689.5,689.38,1.07003806]
[1748479452704,0.29006526,689.5,689.39,1.07003806]
[1748479452915,0.29006526,689.5,689.4,1.07003806]
[1748479453102,0.29006526,689.5,689.41,1.07003806]
[1748479453302,0.29006526,689.5,689.42,1.07003806]
[1748479453505,0.29006526,689.5,689.43,1.06983683]
[1748479453704,0.29006526,689.5,689.09,1.06914261]
[1748479453903,0.29006526,689.5,689.1,1.64123669]
[1748479454099,0.29006526,689.5,689.11,1.64128418]
[1748479454406,0.29006526,689.5,689.12,1.64128418]
[1748479454600,0.29006526,689.5,689.13,1.64128418]
[1748479454905,0.29006526,689.5,689.14,1.64128418]
[1748479455111,0.29006526,689.5,689.15,1.64143267]
[1748479455300,0.29006526,689.5,689.16,1.64169035]
[1748479455504,0.29006526,689.5,689.17,1.64168282]
[1748479455705,0.29006526,689.5,689.18,1.64168282]
[1748479455901,0.29006526,689.5,689.19,1.64168282]
[1748479456109,0.29006526,689.5,689.2,1.64168282]
[1748479456307,0.29006526,689.5,689.21,1.64168282]
[1748479456506,0.29006526,689.5,689.22,1.64168282]
[1748479456701,0.29006526,689.5,689.09,1.06914261]
[1748479456910,0.29006526,689.5,689.1,1.64224292]
[1748479457102,0.29006526,689.5,689.11,1.64224292]
[1748479457306,0.29006526,689.5,689.12,1.64226916]
[1748479457511,0.29006526,689.5,689.13,1.64226916]
[1748479457708,0.29006526,689.5,689.14,1.64226916]
[1748479457908,0.29006526,689.5,689.15,1.64226916]
[1748479458105,0.29006526,689.5,689.16,1.64226916]
[1748479458305,0.29006526,689.5,689.17,1.64226916]
[1748479458505,0.29006526,689.5,689.18,1.64226916]
[1748479458707,0.29006526,689.5,689.09,1.06914261]
[1748479458708,0.29006526,689.5,689.19,1.64226916]
[1748479458905,0.29006526,689.5,689.2,1.64239101]
[1748479459105,0.29006526,689.5,689.21,1.64267811]
[1748479459413,0.29006526,689.5,689.22,1.64267811]
[1748479459610,0.29006526,689.5,689.23,1.64267811]
[1748479459809,0.29006526,689.5,689.09,1.06914261]
[1748479459810,0.29006526,689.5,689.24,1.64267811]
[1748479460110,0.29006526,689.5,689.25,1.64267811]
[1748479460410,0.29006526,689.5,689.26,1.64259574]
[1748479460612,0.29006526,689.5,689.27,1.07073642]
[1748479460814,0.29006526,689.5,689.28,1.64261183]
[1748479461009,0.29006526,689.5,689.29,1.64261183]
[1748479461309,0.29006526,689.5,689.3,1.07073642]
[1748479461609,0.29006526,689.5,689.31,1.07073642]
[1748479461916,0.29006526,689.5,689.32,1.07080839]
[1748479462133,0.29006526,689.5,689.33,1.07080839]
[1748479462409,0.29006526,689.5,689.09,1.06914261]
[1748479462609,0.29006526,689.5,689.1,1.64315148]
[1748479462812,0.29006526,689.5,689.11,1.07108342]
[1748479463009,0.29006526,689.5,689.09,1.06914261]
[1748479463209,0.29006526,689.5,689.1,1.07128544]
[1748479463407,0.29006526,689.5,689.09,1.06914261]
[1748479464009,0.29006526,689.5,689.1,0.57218194]
[1748479464314,0.29006526,689.5,689.09,1.06914261]
[1748479464510,0.29006526,689.5,689.1,0.57218092]
[1748479464709,0.29006526,689.5,689.09,1.06914261]
[1748479465512,0.29006526,689.5,689.1,1.071305]
[1748479465711,0.29006526,689.5,689.09,1.06914261]
[1748479466111,0.29006526,689.5,689.1,1.64349671]
[1748479466314,0.29006526,689.5,689.09,1.06914261]
[1748479466315,0.29006526,689.5,689.11,1.64349817]
[1748479466522,0.29006526,689.5,689.12,1.64349817]
[1748479466812,0.29006526,689.5,689.13,0.57218859]
[1748479467009,0.29006526,689.5,689.14,0.57219089]
[1748479467212,0.29006526,689.5,689.09,1.06914261]
[1748479467416,0.29006526,689.5,689.1,1.64350329]
[1748479467719,0.29006526,689.5,689.11,1.64350329]
[1748479467913,0.29006526,689.5,689.12,0.57219053]
[1748479468211,0.29006526,689.5,689.09,1.06914261]
[1748479468412,0.29006526,689.5,689.1,1.64352486]
[1748479468715,0.29006526,689.5,689.11,1.64352486]
[1748479469013,0.29006526,689.5,689.12,1.64352958]
[1748479469218,0.29006526,689.5,689.13,1.64353239]
[1748479469521,0.29006526,689.5,689.14,0.57220075]
[1748479469813,0.29006526,689.5,689.15,1.64355639]
[1748479470017,0.29006526,689.5,689.16,1.64355639]
[1748479470211,0.29006526,689.5,689.17,1.6435831]
[1748479470414,0.29006526,689.5,689.18,1.6435831]
[1748479470717,0.29006526,689.5,689.09,1.06914261]
[1748479470921,0.29006526,689.5,689.1,1.64231813]
[1748479471125,0.29006526,689.5,689.11,1.64231813]
[1748479471316,0.29006526,689.5,689.09,1.06914261]
[1748479471317,0.29006526,689.5,689.12,1.07008535]
[1748479471522,0.29006526,689.5,689.09,1.06914261]
[1748479471523,0.29006526,689.5,689.13,1.64230797]
[1748479471730,0.29006526,689.5,689.14,1.64230797]
[1748479471921,0.29006526,689.5,689.15,1.64230797]
[1748479472122,0.29006526,689.5,689.16,1.64230797]
[1748479472317,0.29006526,689.5,689.09,1.06914261]
[1748479472522,0.29006526,689.5,689.1,1.64280788]
[1748479472824,0.29006526,689.5,689.11,1.64283997]
[1748479473022,0.29006526,689.5,689.12,1.64283475]
[1748479473224,0.29006526,689.5,689.09,1.06914261]
[1748479473420,0.29006526,689.5,689.1,1.64283567]
[1748479473725,0.29006526,689.5,689.11,0.57222647]
[1748479473918,0.29006526,689.5,689.12,1.07060284]
[1748479474123,0.29006526,689.5,689.13,1.64282931]
[1748479474445,0.29006526,689.5,689.14,1.64282931]
[1748479474624,0.29006526,689.5,689.15,1.64282931]
[1748479474826,0.29006526,689.5,689.16,1.64280221]
[1748479475021,0.29006526,689.5,689.17,1.64280221]
[1748479475225,0.29006526,689.5,689.09,1.06914261]
[1748479475226,0.29006526,689.5,689.18,1.64280202]
[1748479475419,0.29006526,689.5,689.19,1.64277964]
[1748479475618,0.29006526,689.5,689.2,1.64279438]
[1748479475825,0.29006526,689.5,689.21,1.64279438]
[1748479476024,0.29006526,689.5,689.22,1.64279438]
[1748479476227,0.29006526,689.5,689.23,1.64287704]
[1748479476421,0.29006526,689.5,689.24,1.64287704]
[1748479476623,0.29006526,689.5,689.25,1.6423744]
[1748479476822,0.29006526,689.5,689.09,1.06914261]
[1748479476823,0.29006526,689.5,689.26,1.6423744]
[1748479477127,0.29006526,689.5,689.09,1.06914261]
[1748479477128,0.29006526,689.5,689.27,1.6423744]
[1748479477326,0.29006526,689.5,689.28,1.64251097]
[1748479477532,0.29006526,689.5,689.29,1.64251096]
[1748479477824,0.29006526,689.5,689.3,1.64251096]
[1748479478026,0.29006526,689.5,689.31,1.07022416]
[1748479478229,0.29006526,689.5,689.32,1.07022416]
[1748479478531,0.29006526,689.5,689.33,1.06977814]
[1748479478829,0.29006526,689.5,689.34,1.06978184]
[1748479479030,0.29006526,689.5,689.35,1.06978184]
[1748479479226,0.29006526,689.5,689.36,1.06978184]
[1748479479430,0.29006526,689.5,689.37,1.06978184]
[1748479479632,0.29006526,689.5,689.38,1.06978184]
[1748479479925,0.29006526,689.5,689.39,1.06978184]
[1748479480131,0.29006526,689.5,689.4,1.06978184]
[1748479480327,0.29006526,689.5,689.41,1.07057859]
[1748479480534,0.29006526,689.5,689.42,1.07057559]
[1748479480729,0.29006526,689.5,689.43,1.0705755]
[1748479480929,0.29006526,689.5,689.44,1.0705755]
[1748479481131,0.29006526,689.5,689.09,1.06914261]
[1748479481427,0.29006526,689.5,689.1,1.64324207]
[1748479481631,0.29006526,689.5,689.11,1.64324207]
[1748479481939,0.29006526,689.5,689.12,1.64324207]
[1748479482130,0.29006526,689.5,689.13,1.64334186]
[1748479482328,0.29006526,689.5,689.14,1.07083163]
[1748479482636,0.29006526,689.5,689.09,1.06914261]
[1748479482827,0.29006526,689.5,689.1,0.57259638]
[1748479483027,0.29006526,689.5,689.09,1.06914261]
[1748479483227,0.29006526,689.5,689.1,1.07097533]
[1748479483432,0.29006526,689.5,689.11,1.07110717]
[1748479483728,0.29006526,689.5,689.12,1.07111092]
[1748479483933,0.29006526,689.5,689.13,1.07110845]
[1748479484128,0.29006526,689.5,689.14,0.57267157]
[1748479484325,0.29006526,689.5,689.09,1.06914261]
[1748479484529,0.29006526,689.5,689.1,1.64387405]
[1748479484732,0.29006526,689.5,689.09,1.06914261]
[1748479485033,0.29006526,689.5,689.1,1.64401037]
[1748479485232,0.29006526,689.5,689.11,1.64401822]
[1748479485536,0.29006526,689.5,689.12,1.64401822]
[1748479485732,0.29006526,689.5,689.13,1.64401822]
[1748479485933,0.29006526,689.5,689.09,1.06914261]
[1748479485934,0.29006526,689.5,689.14,1.64401822]
[1748479486129,0.29006526,689.5,689.15,1.64401822]
[1748479486333,0.29006526,689.5,689.16,1.64401822]
[1748479486532,0.29006526,689.5,689.09,1.06914261]
[1748479486533,0.29006526,689.5,689.17,1.64401822]
[1748479486733,0.29006526,689.5,689.18,1.64482194]
[1748479486934,0.29006526,689.5,689.19,1.64482194]
[1748479487132,0.29006526,689.5,689.09,1.06914261]
[1748479487133,0.29006526,689.5,689.2,0.57292704]
[1748479487329,0.29006526,689.5,689.21,1.64479537]
[1748479487532,0.29006526,689.5,689.22,1.64479537]
[1748479487829,0.29006526,689.5,689.23,1.64479537]
[1748479488129,0.29006526,689.5,689.24,1.64479537]
[1748479488328,0.29006526,689.5,689.09,1.06914261]
[1748479488535,0.29006526,689.5,689.1,1.64652301]
[1748479488731,0.29006526,689.5,689.11,1.64649468]
[1748479488933,0.29006526,689.5,689.12,0.57315308]
[1748479489135,0.29006526,689.5,689.13,1.64649397]
[1748479489335,0.29006526,689.5,689.14,1.64649397]
[1748479489638,0.29006526,689.5,689.15,1.64648688]
[1748479489938,0.29006526,689.5,689.16,1.64648695]
[1748479490132,0.29006526,689.5,689.17,1.64648695]
[1748479490333,0.29006526,689.5,689.18,1.62117065]
[1748479490536,0.29006526,689.5,689.19,1.62120747]
[1748479490737,0.29006526,689.5,689.09,1.06914261]
[1748479490738,0.29006526,689.5,689.2,1.62117602]
[1748479490937,0.29006526,689.5,689.21,0.57324206]
[1748479491236,0.29006526,689.5,689.22,1.62117602]
[1748479491434,0.29006526,689.5,689.23,1.62117602]
[1748479491631,0.29006526,689.5,689.24,1.62117602]
[1748479491833,0.29006526,689.5,689.25,1.62117602]
[1748479492033,0.29006526,689.5,689.26,1.62117602]
[1748479492238,0.29006526,689.5,689.27,1.62078677]
[1748479492438,0.29006526,689.5,689.09,1.06914261]
[1748479492637,0.29006526,689.5,689.1,0.57326408]
[1748479492938,0.29006526,689.5,689.09,1.06914261]
[1748479492939,0.29006526,689.5,689.11,1.04763042]
[1748479493234,0.29006526,689.5,689.12,1.62088781]
[1748479493438,0.29006526,689.5,689.13,1.62088781]
[1748479493739,0.29006526,689.5,689.14,1.62088781]
[1748479493940,0.29006526,689.5,689.09,1.06914261]
[1748479494135,0.29006526,689.5,689.1,1.62087846]
[1748479494437,0.29006526,689.5,689.11,1.6209729]
[1748479494635,0.29006526,689.5,689.12,1.6209716]
[1748479494834,0.29006526,689.5,689.13,1.62094251]
[1748479495034,0.29006526,689.5,689.14,0.57326014]
[1748479495234,0.29006526,689.5,689.15,1.62090235]
[1748479495435,0.29006526,689.5,689.16,1.62090235]
[1748479495635,0.29006526,689.5,689.17,1.62090235]
[1748479495939,0.29006526,689.5,689.18,1.62090235]
[1748479496140,0.29006526,689.5,689.19,1.62080267]
[1748479496337,0.29006526,689.5,689.2,0.57322497]
[1748479496535,0.29006526,689.5,689.09,1.06914261]
[1748479496736,0.29006526,689.5,689.1,1.62080109]
[1748479496938,0.29006526,689.5,689.11,1.62080109]
[1748479497138,0.29006526,689.5,689.12,1.62078026]
[1748479497336,0.29006526,689.5,689.13,1.62078026]
[1748479497536,0.29006526,689.5,689.14,1.62078026]
[1748479497841,0.29006526,689.5,689.15,1.62069855]
[1748479498034,0.29006526,689.5,689.16,1.62069855]
[1748479498237,0.29006526,689.5,689.17,1.62068548]
[1748479498438,0.29006526,689.5,689.18,1.62068548]
[1748479498641,0.29006526,689.5,689.19,1.62067869]
[1748479498844,0.29006526,689.5,689.2,1.62067869]
[1748479499041,0.29006526,689.5,689.21,1.62067869]
[1748479499247,0.29006526,689.5,689.09,1.06914261]
[1748479499248,0.29006526,689.5,689.22,0.57318104]
[1748479499444,0.29006526,689.5,689.23,1.6206622]
[1748479499647,0.29006526,689.5,689.24,1.62066047]
[1748479499839,0.29006526,689.5,689.25,1.62058882]
[1748479500043,0.29006526,689.5,689.09,1.06914261]
[1748479500646,0.29006526,689.5,689.1,1.62058197]
[1748479500949,0.29006526,689.5,689.11,1.62058118]
[1748479501145,0.29006526,689.5,689.12,1.62058118]
[1748479501345,0.29006526,689.5,689.13,1.62057049]
[1748479501552,0.29006526,689.5,689.14,1.62057049]
[1748479501847,0.29006526,689.5,689.15,1.62059053]
[1748479502046,0.29006526,689.5,689.16,1.62059053]
[1748479502346,0.29006526,689.5,689.17,1.62076066]
[1748479502542,0.29006526,689.5,689.18,1.62084651]
[1748479502747,0.29006526,689.5,689.19,1.62084654]
[1748479503043,0.29006526,689.5,689.2,1.62084654]
[1748479503260,0.29006526,689.5,689.21,1.62061511]
[1748479503446,0.29006526,689.5,689.22,1.62061511]
[1748479503649,0.29006526,689.5,689.09,1.06914261]
[1748479503856,0.29006526,689.5,689.1,1.62060503]
[1748479504047,0.29006526,689.5,689.11,1.62060503]
[1748479504247,0.29006526,689.5,689.12,1.62060503]
[1748479504447,0.29006526,689.5,689.13,1.62037531]
[1748479504747,0.29006526,689.5,689.14,1.62037531]
[1748479504948,0.29006526,689.5,689.09,1.06914261]
[1748479505148,0.29006526,689.5,689.1,1.62023304]
[1748479505445,0.29006526,689.5,689.11,1.04718832]
[1748479505649,0.29006526,689.5,689.12,0.57304023]
[1748479505844,0.29006526,689.5,689.13,1.62021981]
[1748479506045,0.29006526,689.5,689.14,1.62016802]
[1748479506349,0.29006526,689.5,689.15,1.62002618]
[1748479506553,0.29006526,689.5,689.16,0.57293691]
[1748479506753,0.29006526,689.5,689.17,1.04681483]
[1748479506945,0.29006526,689.5,689.18,0.57289223]
[1748479507153,0.29006526,689.5,689.09,1.06914261]
[1748479507454,0.29006526,689.5,689.1,1.61963578]
[1748479507776,0.29006526,689.5,689.11,1.61960165]
[1748479508055,0.29006526,689.5,689.12,1.61960165]
[1748479508264,0.29006526,689.5,689.13,1.61960165]
[1748479508451,0.29006526,689.5,689.14,0.57283326]
[1748479508651,0.29006526,689.5,689.15,1.61880615]
[1748479508857,0.29006526,689.5,689.16,1.61880615]
[1748479509069,0.29006526,689.5,689.17,1.61873436]
[1748479509255,0.29006526,689.5,689.18,1.61849447]
[1748479509563,0.29006526,689.5,689.19,1.61849447]
[1748479509757,0.29006526,689.5,689.09,1.06914261]
[1748479509758,0.29006526,689.5,689.2,1.61849447]
[1748479509958,0.29006526,689.5,689.21,1.61846575]
[1748479510157,0.29006526,689.5,689.22,1.6184719]
[1748479510358,0.29006526,689.5,689.23,1.0458431]
[1748479510559,0.29006526,689.5,689.24,1.0458431]
[1748479510764,0.29006526,689.5,689.25,1.04587854]
[1748479510955,0.29006526,689.5,689.09,1.06914261]
[1748479511159,0.29006526,689.5,689.1,1.61841173]
[1748479511357,0.29006526,689.5,689.11,1.61841173]
[1748479511560,0.29006526,689.5,689.12,1.61841173]
[1748479511761,0.29006526,689.5,689.13,1.61835467]
[1748479512056,0.29006526,689.5,689.14,1.61835141]
[1748479512261,0.29006526,689.5,689.15,1.61835207]
[1748479512561,0.29006526,689.5,689.16,1.61835207]
[1748479512855,0.29006526,689.5,689.09,1.06914261]
[1748479512856,0.29006526,689.5,689.17,1.61768675]
[1748479513066,0.29006526,689.5,689.18,1.61768675]
[1748479513360,0.29006526,689.5,689.19,1.61763296]
[1748479513555,0.29006526,689.5,689.2,1.61733627]
[1748479513760,0.29006526,689.5,689.21,1.61733627]
[1748479513963,0.29006526,689.5,689.09,1.06914261]
[1748479514162,0.29006526,689.5,689.1,1.61725418]
[1748479514361,0.29006526,689.5,689.11,1.61722845]
[1748479514559,0.29006526,689.5,689.12,1.61720727]
[1748479514759,0.29006526,689.5,689.13,1.61720727]
[1748479514960,0.29006526,689.5,689.14,1.61720727]
[1748479515160,0.29006526,689.5,689.15,1.61720727]
[1748479515362,0.29006526,689.5,689.16,1.61707242]
[1748479515561,0.29006526,689.5,689.17,1.61706983]
[1748479515764,0.29006526,689.5,689.18,1.61677444]
[1748479515964,0.29006526,689.5,689.19,1.61677444]
[1748479516166,0.29006526,689.5,689.2,1.61675163]
[1748479516469,0.29006526,689.5,689.21,1.61670375]
[1748479516671,0.29006526,689.5,689.22,1.61670375]
[1748479516866,0.29006526,689.5,689.23,1.04440382]
[1748479517059,0.29006526,689.5,689.24,1.04440382]
[1748479517263,0.29006526,689.5,689.25,1.04440382]
[1748479517560,0.29006526,689.5,689.26,1.04410488]
[1748479517767,0.29006526,689.5,689.09,1.06914261]
[1748479518165,0.29006526,689.5,689.1,1.04411776]
[1748479518365,0.29006526,689.5,689.11,0.57223738]
[1748479518567,0.29006526,689.5,689.09,1.06914261]
[1748479519266,0.29006526,689.5,689.1,1.04451834]
[1748479519471,0.29006526,689.5,689.09,1.06914261]
[1748479519861,0.29006526,689.5,689.1,0.57248932]
[1748479520067,0.29006526,689.5,689.1,1.04435096]
[1748479520368,0.29006526,689.5,689.09,1.06914261]
[1748479520575,0.29006526,689.5,689.1,1.04436552]
[1748479520867,0.29006526,689.5,689.09,1.06914261]
[1748479521368,0.29006526,689.5,689.1,1.0443504]
[1748479521667,0.29006526,689.5,689.09,1.06914261]
[1748479522371,0.29006526,689.5,689.1,0.57247462]
[1748479522570,0.29006526,689.5,689.09,1.06914261]
[1748479522769,0.29006526,689.5,689.1,0.57247754]
[1748479522967,0.29006526,689.5,689.09,1.06914261]
[1748479523165,0.29006526,689.5,689.1,0.57247157]
[1748479523468,0.29006526,689.5,689.09,1.06914261]
[1748479523666,0.29006526,689.5,689.1,1.04463048]
[1748479523866,0.29006526,689.5,689.11,0.57247619]
[1748479524070,0.29006526,689.5,689.12,1.61735111]
[1748479524266,0.29006526,689.5,689.13,1.04473252]
[1748479524465,0.29006526,689.5,689.09,1.06914261]
[1748479524870,0.29006526,689.5,689.1,0.57243371]
[1748479525170,0.29006526,689.5,689.09,1.06914261]
[1748479526372,0.29006526,689.5,689.1,1.04448355]
[1748479526573,0.29006526,689.5,689.09,1.06914261]
[1748479526770,0.29006526,689.5,689.1,1.04447924]
[1748479526969,0.29006526,689.5,689.11,1.04447674]
[1748479527274,0.29006526,689.5,689.09,1.06914261]
[1748479527772,0.29006526,689.5,689.1,1.04448282]
[1748479527968,0.29006526,689.5,689.11,1.04449448]
[1748479528276,0.29006526,689.5,689.09,1.06914261]
[1748479528577,0.29006526,689.5,689.1,1.04447961]
[1748479528768,0.29006526,689.5,689.11,1.04443756]
[1748479528973,0.29006526,689.5,689.09,1.06914261]
[1748479528974,0.29006526,689.5,689.12,1.04444354]
[1748479529171,0.29006526,689.5,689.09,1.06914261]
[1748479529972,0.29006526,689.5,689.1,0.57239194]
[1748479530173,0.29006526,689.5,689.1,1.04421833]
[1748479530471,0.29006526,689.5,689.11,1.0442141]
[1748479530675,0.29006526,689.5,689.1,1.04421833]
[1748479531075,0.29006526,689.5,689.11,1.61660906]
[1748479531272,0.29006526,689.5,689.12,0.57238686]
[1748479531473,0.29006526,689.5,689.13,1.04420479]
[1748479531778,0.29006526,689.5,689.1,1.04421833]
[1748479532180,0.29006526,689.5,689.11,1.61661481]
[1748479532479,0.29006526,689.5,689.1,1.04421833]
[1748479533089,0.29006526,689.5,689.11,0.57241955]
[1748479533278,0.29006526,689.5,689.1,1.04421833]
[1748479534080,0.29006526,689.5,689.11,1.04427836]
[1748479534278,0.29006526,689.5,689.1,1.04421833]
[1748479534490,0.29006526,689.5,689.11,1.04426891]
[1748479534681,0.29006526,689.5,689.12,0.57233727]
[1748479534900,0.29006526,689.5,689.13,1.61641201]
[1748479535077,0.29006526,689.5,689.14,0.57234154]
[1748479535291,0.29006526,689.5,689.1,1.04421833]
[1748479535292,0.29006526,689.5,689.15,1.04407006]
[1748479535487,0.29006526,689.5,689.1,1.04421833]
[1748479535684,0.29006526,689.5,689.11,0.57233762]
[1748479535876,0.29006526,689.5,689.1,1.04421833]
[1748479536085,0.29006526,689.5,689.11,1.61639067]
[1748479536281,0.29006526,689.5,689.12,1.61639067]
[1748479536484,0.29006526,689.5,689.1,1.04421833]
[1748479536485,0.29006526,689.5,689.13,1.61575405]
[1748479536677,0.29006526,689.5,689.14,1.61575405]
[1748479536977,0.29006526,689.5,689.15,1.61527579]
[1748479537177,0.29006526,689.5,689.16,0.57216433]
[1748479537378,0.29006526,689.5,689.17,1.6152758]
[1748479537577,0.29006526,689.5,689.18,1.6152758]
[1748479537778,0.29006526,689.5,689.19,1.6152758]
[1748479537990,0.29006526,689.5,689.2,1.6152758]
[1748479538180,0.29006526,689.5,689.21,1.61482221]
[1748479538486,0.29006526,689.5,689.1,1.04421833]
[1748479538683,0.29006526,689.5,689.11,1.61464606]
[1748479538882,0.29006526,689.5,689.12,1.61429546]
[1748479539081,0.29006526,689.5,689.13,1.61429546]
[1748479539289,0.29006526,689.5,689.14,1.61429518]
[1748479539481,0.29006526,689.5,689.15,1.61429187]
[1748479539686,0.29006526,689.5,689.16,1.61429187]
[1748479539886,0.29006526,689.5,689.17,1.61429187]
[1748479540084,0.29006526,689.5,689.1,1.04421833]
[1748479540085,0.29006526,689.5,689.18,1.61429187]
[1748479540287,0.29006526,689.5,689.19,1.61420546]
[1748479540584,0.29006526,689.5,689.2,1.61420546]
[1748479540785,0.29006526,689.5,689.21,1.61420546]
[1748479540989,0.29006526,689.5,689.1,1.04421833]
[1748479541186,0.29006526,689.5,689.11,1.61383605]
[1748479541385,0.29006526,689.5,689.12,1.61383605]
[1748479541583,0.29006526,689.5,689.13,1.61383605]
[1748479541884,0.29006526,689.5,689.14,1.61342429]
[1748479542187,0.29006526,689.5,689.15,1.61356402]
[1748479542383,0.29006526,689.5,689.16,1.61356407]
[1748479542581,0.29006526,689.5,689.17,0.57155059]
[1748479542888,0.29006526,689.5,689.1,1.04421833]
[1748479542889,0.29006526,689.5,689.18,1.61355846]
[1748479543089,0.29006526,689.5,689.19,1.6134033]
[1748479543391,0.29006526,689.5,689.2,1.6134033]
[1748479543581,0.29006526,689.5,689.21,1.04188]
[1748479543792,0.29006526,689.5,689.22,1.61337367]
[1748479543986,0.29006526,689.5,689.23,1.61337367]
[1748479544185,0.29006526,689.5,689.24,1.61326929]
[1748479544383,0.29006526,689.5,689.25,1.61326929]
[1748479544582,0.29006526,689.5,689.26,1.61324612]
[1748479544786,0.29006526,689.5,689.27,1.61324612]
[1748479544982,0.29006526,689.5,689.28,1.61310853]
[1748479545286,0.29006526,689.5,689.29,1.61310853]
[1748479545483,0.29006526,689.5,689.3,1.61310853]
[1748479545687,0.29006526,689.5,689.31,1.61310853]
[1748479545888,0.29006526,689.5,689.32,1.61310853]
[1748479546086,0.29006526,689.5,689.33,0.57121308]
[1748479546388,0.29006526,689.5,689.34,0.57121308]
[1748479546685,0.29006526,689.5,689.1,1.04421833]
[1748479546686,0.29006526,689.5,689.35,1.61280579]
[1748479546886,0.29006526,689.5,689.36,1.04159271]
[1748479547085,0.29006526,689.5,689.1,1.04421833]
[1748479547086,0.29006526,689.5,689.37,1.04159271]
[1748479547287,0.29006526,689.5,689.38,1.04159271]
[1748479547590,0.29006526,689.5,689.39,1.04159271]
[1748479547792,0.29006526,689.5,689.1,1.04421833]
[1748479547988,0.29006526,689.5,689.11,1.61239441]
[1748479548225,0.29006526,689.5,689.12,0.57100742]
[1748479548383,0.29006526,689.5,689.13,1.04115654]
[1748479548604,0.29006526,689.5,689.1,1.04421833]
[1748479549186,0.29006526,689.5,689.11,1.61201876]
[1748479549484,0.29006526,689.5,689.1,1.04421833]
[1748479549485,0.29006526,689.5,689.12,1.04106582]
[1748479549691,0.29006526,689.5,689.1,1.04421833]
[1748479551290,0.29006526,689.5,689.11,1.04019452]
[1748479551486,0.29006526,689.5,689.12,1.61121391]
[1748479551794,0.29006526,689.5,689.1,1.04421833]
[1748479552692,0.29006526,689.5,689.11,0.57102824]